fUSD/lending_fUSD_20241222
["ID","MTS","AMOUNT","RATE_DAILY","PERIOD"]
[346255065,1734833441530,-500.0,0.00019178,2]
[346255066,1734833441539,-500.0,0.00019178,2]
[346255067,1734833441548,-513.43507845,0.00019178,2]
[346255068,1734833441556,-500.0,0.00019178,2]
[346255069,1734833441565,-501.82373346,0.00019178,2]
[346255070,1734833441575,-500.0,0.00019178,2]
[346255071,1734833441584,-500.0,0.00019178,2]
[346255072,1734833441593,-500.0,0.00019178,2]
[346255073,1734833441604,-501.57851378,0.00019178,2]
[346255074,1734833441616,-500.0,0.00019178,2]
[346255075,1734833441803,-500.0,0.00019178,2]
[346255076,1734833441814,-500.0,0.00019178,2]
[346255077,1734833441823,-500.0,0.00019178,2]
[346255078,1734833441833,-506.37981733,0.00019178,2]
[346255079,1734833441842,-500.0,0.00019178,2]
[346255080,1734833441852,-512.30545779,0.00019178,2]
[346255081,1734833441861,-500.0,0.00019178,2]
[346255082,1734833441871,-1686.43,0.00019178,2]
[346255083,1734833441881,-500.0,0.00019178,2]
[346255084,1734833441891,-500.0,0.00019178,2]
[346255085,1734833441900,-517.8008363,0.00019178,2]
[346255086,1734833441909,-500.0,0.00019178,2]
[346255087,1734833441919,-504.54882334,0.00019178,2]
[346255088,1734833441930,-506.46430482,0.00019178,2]
[346255089,1734833441939,-500.0,0.00019178,2]
[346255090,1734833441948,-500.0,0.00019178,2]
[346255091,1734833441958,-500.0,0.00019178,2]
[346255092,1734833441967,-500.0,0.00019178,2]
[346255093,1734833441977,-352.45515652,0.00019178,2]
[346255094,1734833441986,-189.01189965,0.00019178,2]
[346255095,1734833441995,-506.82702713,0.00019178,2]
[346255096,1734833442005,-500.0,0.00019178,2]
[346255097,1734833442014,-150.29446925,0.00019178,2]
[346255098,1734833442023,-500.0,0.00019178,2]
[346255099,1734833442035,-540.81,0.00019178,2]
[346255100,1734833442045,-500.0,0.00019178,2]
[346255101,1734833442055,-500.0,0.00019178,2]
[346255102,1734833442065,-520.27027271,0.00019178,2]
[346255103,1734833442075,-500.0,0.00019178,2]
[346255104,1734833442085,-500.0,0.00019178,2]
[346255105,1734833442094,-441.80660749,0.00019178,2]
[346255106,1734833442105,-512.12459314,0.00019178,2]
[346255107,1734833442114,-518.51386929,0.00019178,2]
[346255108,1734833442124,-500.0,0.00019178,2]
[346255109,1734833442137,-504.4920565,0.00019178,2]
[346255110,1734833442156,-500.0,0.00019178,2]
[346255111,1734833442167,-500.0,0.00019178,2]
[346255112,1734833442176,-360.38972795,0.00019178,2]
[346255113,1734833442184,-500.0,0.00019178,2]
[346255114,1734833442194,-501.57076191,0.00019178,2]
[346255115,1734833442203,-501.71,0.00019178,2]
[346255116,1734833442212,-510.33991468,0.00019178,2]
[346255117,1734833442222,-500.0,0.00019178,2]
[346255118,1734833442233,-500.0,0.00019178,2]
[346255119,1734833442243,-500.0,0.00019178,2]
[346255120,1734833442252,-501.61804056,0.00019178,2]
[346255121,1734833442261,-507.87135192,0.00019178,2]
[346255122,1734833442271,-500.0,0.00019178,2]
[346255123,1734833442280,-500.0,0.00019178,2]
[346255124,1734833442289,-500.0,0.00019178,2]
[346255125,1734833442298,-512.42587841,0.00019178,2]
[346255126,1734833442308,-358.93689322,0.00019178,2]
[346255127,1734833442318,-500.0,0.00019178,2]
[346255128,1734833442327,-509.04612127,0.00019178,2]
[346255129,1734833442336,-500.0,0.00019178,2]
[346255130,1734833442347,-515.67517775,0.00019178,2]
[346255131,1734833442356,-500.0,0.00019178,2]
[346255132,1734833442366,-500.0,0.00019178,2]
[346255133,1734833442375,-397.39662673,0.00019178,2]
[346255134,1734833442384,-509.74838902,0.00019178,2]
[346255135,1734833442395,-515.84351837,0.00019178,2]
[346255136,1734833442404,-500.0,0.00019178,2]
[346255137,1734833442413,-500.0,0.00019178,2]
[346255138,1734833442422,-500.0,0.00019178,2]
[346255139,1734833442431,-502.17729488,0.00019178,2]
[346255140,1734833442440,-500.0,0.00019178,2]
[346255141,1734833442452,-500.0,0.00019178,2]
[346255142,1734833442462,-508.56937464,0.00019178,2]
[346255143,1734833442473,-500.0,0.00019178,2]
[346255144,1734833442482,-503.65006089,0.00019178,2]
[346255145,1734833442491,-540.69298693,0.00019178,2]
[346255146,1734833442501,-500.0,0.00019178,2]
[346255147,1734833442510,-505.45185086,0.00019178,2]
[346255148,1734833442520,-529.94721322,0.00019178,2]
[346255149,1734833442530,-500.0,0.00019178,2]
[346255150,1734833442539,-500.0,0.00019178,2]
[346255151,1734833442549,-500.0,0.00019178,2]
[346255152,1734833442558,-500.0,0.00019178,2]
[346255153,1734833442567,-503.17922111,0.00019178,2]
[346255154,1734833442576,-200.0,0.00019178,2]
[346255155,1734833442586,-500.0,0.00019178,2]
[346255156,1734833442595,-500.0,0.00019178,2]
[346255157,1734833442607,-180.0649147,0.00019178,2]
[346255158,1734833442616,-504.054937,0.00019178,2]
[346255159,1734833442626,-506.11058655,0.00019178,2]
[346255160,1734833442636,-500.0,0.00019178,2]
[346255161,1734833442647,-565.8890235,0.00019178,2]
[346255162,1734833442657,-500.0,0.00019178,2]
[346255163,1734833442667,-500.0,0.00019178,2]
[346255164,1734833442676,-1369.71,0.00019178,2]
[346255165,1734833442686,-514.91021994,0.00019178,2]
[346255166,1734833442695,-507.396507,0.00019178,2]
[346255167,1734833442704,-516.67074416,0.00019178,2]
[346255168,1734833442713,-500.0,0.00019178,2]
[346255169,1734833442723,-501.14782697,0.00019178,2]
[346255170,1734833442733,-509.40132324,0.00019178,2]
[346255171,1734833442743,-500.0,0.00019178,2]
[346255172,1734833442753,-507.97217334,0.00019178,2]
[346255173,1734833442763,-507.22816742,0.00019178,2]
[346255174,1734833442772,-507.45217073,0.00019178,2]
[346255175,1734833442781,-518.65431362,0.00019178,2]
[346255176,1734833442790,-507.60796154,0.00019178,2]
[346255177,1734833442800,-500.0,0.00019178,2]
[346255178,1734833442810,-500.0,0.00019178,2]
[346255179,1734833442819,-500.0,0.00019178,2]
[346255180,1734833442828,-1004.31,0.00019178,2]
[346255181,1734833442839,-529.83738897,0.00019178,2]
[346255182,1734833442848,-227.69500416,0.00019178,2]
[346255183,1734833442858,-500.0,0.00019178,2]
[346255185,1734833442867,-502.78008366,0.00019178,2]
[346255186,1734833442877,-506.02187033,0.00019178,2]
[346255187,1734833442888,-506.63411105,0.00019178,2]
[346255188,1734833442898,-500.0,0.00019178,2]
[346255189,1734833442907,-500.0,0.00019178,2]
[346255190,1734833442916,-513.22227078,0.00019178,2]
[346255191,1734833442927,-500.0,0.00019178,2]
[346255192,1734833442936,-500.0,0.00019178,2]
[346255193,1734833442945,-503.43921561,0.00019178,2]
[346255194,1734833442956,-510.47520475,0.00019178,2]
[346255195,1734833442968,-500.0,0.00019178,2]
[346255196,1734833442979,-509.07732038,0.00019178,2]
[346255197,1734833442988,-509.20288996,0.00019178,2]
[346255198,1734833442997,-500.0,0.00019178,2]
[346255199,1734833443006,-500.0,0.00019178,2]
[346255200,1734833443016,-500.0,0.00019178,2]
[346255201,1734833443025,-505.69638077,0.00019178,2]
[346255202,1734833443035,-2049.28,0.00019178,2]
[346255203,1734833443045,-500.0,0.00019178,2]
[346255204,1734833443055,-500.0,0.00019178,2]
[346255205,1734833443065,-500.0,0.00019178,2]
[346255206,1734833443075,-507.89097151,0.00019178,2]
[346255207,1734833443085,-265.42509885,0.00019178,2]
[346255208,1734833443095,-500.0,0.00019178,2]
[346255209,1734833443105,-509.34900346,0.00019178,2]
[346255210,1734833443116,-687.69,0.00019178,2]
[346255211,1734833443126,-5025.59112094,0.00019178,2]
[346255212,1734833443136,-498.69292853,0.00019178,2]
[346255213,1734833443146,-500.0,0.00019178,2]
[346255214,1734833443155,-500.0,0.00019178,2]
[346255215,1734833443165,-500.0,0.00019178,2]
[346255216,1734833443175,-611.52839482,0.00019178,2]
[346255217,1734833443189,-500.0,0.00019178,2]
[346255218,1734833443200,-513.97215065,0.00019178,2]
[346255219,1734833443209,-500.0,0.00019178,2]
[346255220,1734833443221,-500.0,0.00019178,2]
[346255221,1734833443231,-500.0,0.00019178,2]
[346255222,1734833443242,-508.80011372,0.00019178,2]
[346255223,1734833443252,-500.0,0.00019178,2]
[346255224,1734833443262,-500.0,0.00019178,2]
[346255225,1734833443272,-531.3370896,0.00019178,2]
[346255226,1734833443282,-506.15428766,0.00019178,2]
[346255227,1734833443291,-503.93356202,0.00019178,2]
[346255228,1734833443301,-505.35815615,0.00019178,2]
[346255229,1734833443310,-500.0,0.00019178,2]
[346255230,1734833443319,-524.86535301,0.00019178,2]
[346255231,1734833443328,-512.05480112,0.00019178,2]
[346255232,1734833443337,-507.98073123,0.00019178,2]
[346255233,1734833443347,-517.08975402,0.00019178,2]
[346255234,1734833443356,-500.0,0.00019178,2]
[346255235,1734833443365,-500.0,0.00019178,2]
[346255236,1734833443375,-500.0,0.00019178,2]
[346255237,1734833443384,-515.73041276,0.00019178,2]
[346255238,1734833443394,-500.0,0.00019178,2]
[346255239,1734833443404,-500.0,0.00019178,2]
[346255240,1734833443413,-500.0,0.00019178,2]
[346255241,1734833443423,-517.39383786,0.00019178,2]
[346255242,1734833443433,-506.258248,0.00019178,2]
[346255243,1734833443443,-526.38939877,0.00019178,2]
[346255244,1734833443453,-500.0,0.00019178,2]
[346255245,1734833443462,-500.0,0.00019178,2]
[346255246,1734833443471,-500.0,0.00019178,2]
[346255247,1734833443481,-500.0,0.00019178,2]
[346255248,1734833443492,-500.0,0.00019178,2]
[346255249,1734833443505,-529.85039446,0.00019178,2]
[346255250,1734833443518,-514.89937603,0.00019178,2]
[346255251,1734833443530,-506.04357151,0.00019178,2]
[346255252,1734833443540,-520.02255358,0.00019178,2]
[346255253,1734833443552,-1821.95,0.00019178,2]
[346255254,1734833443565,-502.7455872,0.00019178,2]
[346255255,1734833443577,-511.88541494,0.00019178,2]
[346255256,1734833443589,-511.08127775,0.00019178,2]
[346255257,1734833443602,-1379.12,0.00019178,2]
[346255258,1734833443616,-544.61155093,0.00019178,2]
[346255259,1734833443629,-500.0,0.00019178,2]
[346255260,1734833443641,-482.32050424,0.00019178,2]
[346255261,1734833443653,-501.75400272,0.00019178,2]
[346255262,1734833443664,-504.50401952,0.00019178,2]
[346255263,1734833443674,-500.0,0.00019178,2]
[346255264,1734833443688,-508.94461486,0.00019178,2]
[346255265,1734833443700,-500.0,0.00019178,2]
[346255266,1734833443713,-500.0,0.00019178,2]
[346255267,1734833443726,-150.0,0.00019178,2]
[346255268,1734833443737,-501.15762529,0.00019178,2]
[346255269,1734833443750,-506.84356385,0.00019178,2]
[346255270,1734833443762,-150.22332799,0.00019178,2]
[346255271,1734833443775,-502.1135628,0.00019178,2]
[346255272,1734833443788,-508.07045252,0.00019178,2]
[346255273,1734833443801,-500.0,0.00019178,2]
[346255274,1734833443813,-503.40337239,0.00019178,2]
[346255275,1734833443825,-500.0,0.00019178,2]
[346255276,1734833443836,-2119.82,0.00019178,2]
[346255277,1734833443848,-500.0,0.00019178,2]
[346255278,1734833443859,-500.0,0.00019178,2]
[346255279,1734833443869,-511.45298448,0.00019178,2]
[346255280,1734833443881,-500.0,0.00019178,2]
[346255281,1734833443893,-505.74712662,0.00019178,2]
[346255282,1734833443906,-511.96242169,0.00019178,2]
[346255283,1734833443918,-360.65458726,0.00019178,2]
[346255284,1734833443929,-500.0,0.00019178,2]
[346255285,1734833443938,-570.26,0.00019178,2]
[346255286,1734833443948,-502.5931121,0.00019178,2]
[346255287,1734833443958,-506.13661695,0.00019178,2]
[346255288,1734833443969,-500.0,0.00019178,2]
[346255289,1734833443982,-518.51050283,0.00019178,2]
[346255290,1734833443993,-513.93025966,0.00019178,2]
[346255291,1734833444002,-506.32376165,0.00019178,2]
[346255292,1734833444012,-513.98221444,0.00019178,2]
[346255293,1734833444022,-508.81875435,0.00019178,2]
[346255294,1734833444032,-500.0,0.00019178,2]
[346255295,1734833444044,-500.0,0.00019178,2]
[346255296,1734833444056,-500.0,0.00019178,2]
[346255297,1734833444067,-513.03075496,0.00019178,2]
[346255298,1734833444077,-500.0,0.00019178,2]
[346255299,1734833444087,-503.8992088,0.00019178,2]
[346255300,1734833444097,-500.0,0.00019178,2]
[346255301,1734833444108,-500.0,0.00019178,2]
[346255302,1734833444118,-500.0,0.00019178,2]
[346255303,1734833444129,-502.77306714,0.00019178,2]
[346255304,1734833444139,-500.0,0.00019178,2]
[346255305,1734833444152,-500.0,0.00019178,2]
[346255306,1734833444163,-510.84249879,0.00019178,2]
[346255307,1734833444174,-219.52597128,0.00019178,2]
[346255308,1734833444184,-555.8968163,0.00019178,2]
[346255309,1734833444195,-513.61412285,0.00019178,2]
[346255310,1734833444205,-379.45958239,0.00019178,2]
[346255311,1734833444216,-507.69052658,0.00019178,2]
[346255312,1734833444227,-500.0,0.00019178,2]
[346255313,1734833444238,-13708.88188051,0.00019178,2]
[346255314,1734833444248,-500.0,0.00019178,2]
[346255315,1734833444261,-508.45120339,0.00019178,2]
[346255317,1734833444271,-500.0,0.00019178,2]
[346255319,1734833444283,-152.044708,0.00019178,2]
[346255320,1734833444294,-500.0,0.00019178,2]
[346255321,1734833444305,-510.74101268,0.00019178,2]
[346255322,1734833444316,-500.0,0.00019178,2]
[346255323,1734833444327,-506.34756161,0.00019178,2]
[346255324,1734833444337,-507.60815638,0.00019178,2]
[346255325,1734833444347,-539.87113027,0.00019178,2]
[346255326,1734833444358,-500.0,0.00019178,2]
[346255327,1734833444369,-500.0,0.00019178,2]
[346255328,1734833444379,-500.0,0.00019178,2]
[346255329,1734833444390,-499.59744933,0.00019178,2]
[346255330,1734833444400,-500.0,0.00019178,2]
[346255331,1734833444411,-516.15356248,0.00019178,2]
[346255332,1734833444423,-507.17292759,0.00019178,2]
[346255333,1734833444434,-506.70649607,0.00019178,2]
[346255334,1734833444444,-502.92784996,0.00019178,2]
[346255335,1734833444455,-500.0,0.00019178,2]
[346255336,1734833444466,-534.87360848,0.00019178,2]
[346255337,1734833444477,-500.0,0.00019178,2]
[346255338,1734833444488,-504.1062469,0.00019178,2]
[346255339,1734833444498,-506.83185889,0.00019178,2]
[346255340,1734833444509,-512.64477884,0.00019178,2]
[346255341,1734833444524,-507.47150225,0.00019178,2]
[346255342,1734833444536,-500.0,0.00019178,2]
[346255343,1734833444548,-502.38450296,0.00019178,2]
[346255344,1734833444560,-500.0,0.00019178,2]
[346255345,1734833444572,-317.3034341,0.00019178,2]
[346255346,1734833444585,-505.26517679,0.00019178,2]
[346255347,1734833444596,-500.0,0.00019178,2]
[346255348,1734833444610,-500.0,0.00019178,2]
[346255349,1734833444621,-520.91666906,0.00019178,2]
[346255350,1734833444632,-504.33708831,0.00019178,2]
[346255351,1734833444644,-500.0,0.00019178,2]
[346255352,1734833444656,-509.34072855,0.00019178,2]
[346255353,1734833444667,-505.12953852,0.00019178,2]
[346255354,1734833444678,-4626.1809729,0.00019178,2]
[346255355,1734833444690,-500.0,0.00019178,2]
[346255356,1734833444702,-505.35296873,0.00019178,2]
[346255357,1734833444713,-538.01715897,0.00019178,2]
[346255358,1734833444724,-505.59830704,0.00019178,2]
[346255359,1734833444735,-502.52197884,0.00019178,2]
[346255360,1734833444747,-500.0,0.00019178,2]
[346255361,1734833444758,-517.71373998,0.00019178,2]
[346255362,1734833444769,-505.60761195,0.00019178,2]
[346255363,1734833444780,-502.26990636,0.00019178,2]
[346255364,1734833444791,-503.72277524,0.00019178,2]
[346255365,1734833444802,-503.69381943,0.00019178,2]
[346255366,1734833444813,-500.0,0.00019178,2]
[346255367,1734833444824,-500.0,0.00019178,2]
[346255368,1734833444835,-2182.53,0.00019178,2]
[346255369,1734833444846,-500.0,0.00019178,2]
[346255370,1734833444858,-945.41,0.00019178,2]
[346255371,1734833444869,-511.88891018,0.00019178,2]
[346255372,1734833444881,-335.44606815,0.00019178,2]
[346255373,1734833444892,-500.0,0.00019178,2]
[346255374,1734833444903,-205.62460074,0.00019178,2]
[346255375,1734833444914,-500.0,0.00019178,2]
[346255376,1734833444925,-500.0,0.00019178,2]
[346255377,1734833444937,-601.8,0.00019178,2]
[346255378,1734833444948,-500.0,0.00019178,2]
[346255379,1734833444959,-500.0,0.00019178,2]
[346255380,1734833444970,-248.48500374,0.00019178,2]
[346255381,1734833444981,-159.11096123,0.00019178,2]
[346255382,1734833444991,-500.0,0.00019178,2]
[346255383,1734833445002,-500.0,0.00019178,2]
[346255384,1734833445013,-543.61359125,0.00019178,2]
[346255385,1734833445024,-508.17997106,0.00019178,2]
[346255386,1734833445035,-500.0,0.00019178,2]
[346255387,1734833445045,-8338.98,0.00019178,2]
[346255388,1734833445056,-500.0,0.00019178,2]
[346255389,1734833445067,-503.21295268,0.00019178,2]
[346255390,1734833445077,-507.91693207,0.00019178,2]
[346255391,1734833445088,-881.9,0.00019178,2]
[346255392,1734833445099,-2714.14,0.00019178,2]
[346255393,1734833445109,-500.0,0.00019178,2]
[346255394,1734833445120,-503.73255204,0.00019178,2]
[346255395,1734833445131,-1953.7511132,0.00019178,2]
[346255396,1734833445142,-500.0,0.00019178,2]
[346255397,1734833445152,-500.0,0.00019178,2]
[346255398,1734833445163,-2626.57,0.00019178,2]
[346255399,1734833445174,-620.21177995,0.00019178,2]
[346255400,1734833445185,-500.0,0.00019178,2]
[346255401,1734833445195,-1000.0,0.00019178,2]
[346255402,1734833445206,-500.0,0.00019178,2]
[346255403,1734833445217,-500.0,0.00019178,2]
[346255404,1734833445227,-500.0,0.00019178,2]
[346255405,1734833445238,-506.98161933,0.00019178,2]
[346255406,1734833445249,-2113.11,0.00019178,2]
[346255407,1734833445260,-500.0,0.00019178,2]
[346255408,1734833445270,-507.7332374,0.00019178,2]
[346255409,1734833445281,-1098.34,0.00019178,2]
[346255410,1734833445291,-582.59,0.00019178,2]
[346255411,1734833445302,-939.68,0.00019178,2]
[346255412,1734833445312,-7079.26,0.00019178,2]
[346255413,1734833445321,-507.49373917,0.00019178,2]
[346255414,1734833445330,-1236.02,0.00019178,2]
[346255415,1734833445339,-505.20864258,0.00019178,2]
[346255416,1734833445348,-500.0,0.00019178,2]
[346255417,1734833445357,-500.0,0.00019178,2]
[346255418,1734833445367,-804.04,0.00019178,2]
[346255419,1734833445620,-503.07114109,0.00019178,2]
[346255420,1734833445637,-511.53771029,0.00019178,2]
[346255421,1734833445647,-500.0,0.00019178,2]
[346255422,1734833445656,-500.0,0.00019178,2]
[346255423,1734833445665,-500.0,0.00019178,2]
[346255424,1734833445675,-501.99883159,0.00019178,2]
[346255425,1734833445685,-501.39321181,0.00019178,2]
[346255426,1734833445694,-626.13,0.00019178,2]
[346255427,1734833445703,-500.0,0.00019178,2]
[346255428,1734833445712,-507.84073188,0.00019178,2]
[346255429,1734833445721,-1011.95,0.00019178,2]
[346255430,1734833445729,-502.54817511,0.00019178,2]
[346255431,1734833445739,-500.0,0.00019178,2]
[346255432,1734833445748,-500.0,0.00019178,2]
[346255433,1734833445756,-500.0,0.00019178,2]
[346255434,1734833445766,-1784.53,0.00019178,2]
[346255435,1734833445775,-825.86,0.00019178,2]
[346255436,1734833445784,-500.0,0.00019178,2]
[346255437,1734833445794,-5457.03,0.00019178,2]
[346255438,1734833445803,-500.0,0.00019178,2]
[346255439,1734833445812,-769.72,0.00019178,2]
[346255440,1734833445821,-500.0,0.00019178,2]
[346255441,1734833445830,-500.0,0.00019178,2]
[346255442,1734833445840,-509.50633394,0.00019178,2]
[346255443,1734833445849,-546.80921987,0.00019178,2]
[346255444,1734833445858,-500.0,0.00019178,2]
[346255445,1734833445867,-7335.36,0.00019178,2]
[346255446,1734833445877,-507.71296581,0.00019178,2]
[346255447,1734833445887,-500.0,0.00019178,2]
[346255448,1734833445896,-503.8943502,0.00019178,2]
[346255449,1734833445905,-500.0,0.00019178,2]
[346255450,1734833445914,-501.52517906,0.00019178,2]
[346255451,1734833445923,-908.07,0.00019178,2]
[346255452,1734833445933,-500.0,0.00019178,2]
[346255453,1734833445942,-500.0,0.00019178,2]
[346255454,1734833445951,-513.31485451,0.00019178,2]
[346255455,1734833445960,-500.0,0.00019178,2]
[346255457,1734833445970,-500.0,0.00019178,2]
[346255458,1734833445979,-500.0,0.00019178,2]
[346255459,1734833445988,-500.0,0.00019178,2]
[346255460,1734833445997,-505.87802943,0.00019178,2]
[346255461,1734833446006,-509.50944372,0.00019178,2]
[346255462,1734833446015,-500.0,0.00019178,2]
[346255463,1734833446025,-500.0,0.00019178,2]
[346255464,1734833446035,-500.0,0.00019178,2]
[346255465,1734833446043,-495.0615217,0.00019178,2]
[346255466,1734833446053,-506.63737831,0.00019178,2]
[346255467,1734833446062,-506.38108822,0.00019178,2]
[346255468,1734833446071,-503.83449846,0.00019178,2]
[346255469,1734833446080,-506.94344469,0.00019178,2]
[346255470,1734833446089,-502.48831846,0.00019178,2]
[346255471,1734833446099,-356.55336365,0.00019178,2]
[346255472,1734833446109,-513.61378407,0.00019178,2]
[346255473,1734833446118,-735.36,0.00019178,2]
[346255474,1734833446127,-507.90328701,0.00019178,2]
[346255475,1734833446136,-504.93646187,0.00019178,2]
[346255476,1734833446146,-553.43322432,0.00019178,2]
[346255477,1734833446155,-500.0,0.00019178,2]
[346255478,1734833446165,-1115.49,0.00019178,2]
[346255479,1734833446174,-1115.49,0.00019178,2]
[346255480,1734833446183,-1115.49,0.00019178,2]
[346255481,1734833446192,-500.0,0.00019178,2]
[346255482,1734833446201,-505.56504474,0.00019178,2]
[346255483,1734833446210,-500.0,0.00019178,2]
[346255484,1734833446219,-873.08,0.00019178,2]
[346255485,1734833446229,-500.0,0.00019178,2]
[346255486,1734833446238,-500.0,0.00019178,2]
[346255487,1734833446247,-502.22701592,0.00019178,2]
[346255488,1734833446256,-500.0,0.00019178,2]
[346255489,1734833446265,-895.33,0.00019178,2]
[346255490,1734833446274,-2617.23,0.00019178,2]
[346255491,1734833446283,-503.96776708,0.00019178,2]
[346255492,1734833446292,-1391.51,0.00019178,2]
[346255493,1734833446302,-500.0,0.00019178,2]
[346255494,1734833446311,-606.61541614,0.00019178,2]
[346255495,1734833446320,-507.03729611,0.00019178,2]
[346255496,1734833446329,-891.49,0.00019178,2]
[346255497,1734833446338,-509.66373996,0.00019178,2]
[346255498,1734833446347,-570.82,0.00019178,2]
[346255499,1734833446356,-513.06,0.00019178,2]
[346255500,1734833446366,-3789.1,0.00019178,2]
[346255501,1734833446375,-925.06,0.00019178,2]
[346255502,1734833446383,-509.02440436,0.00019178,2]
[346255503,1734833446393,-509.5917232,0.00019178,2]
[346255504,1734833446403,-507.10347349,0.00019178,2]
[346255505,1734833446412,-500.0,0.00019178,2]
[346255506,1734833446422,-500.0,0.00019178,2]
[346255507,1734833446431,-150.0,0.00019178,2]
[346255508,1734833446441,-598.19917137,0.00019178,2]
[346255509,1734833446451,-500.0,0.00019178,2]
[346255510,1734833446460,-500.0,0.00019178,2]
[346255511,1734833446469,-5153.38,0.00019178,2]
[346255512,1734833446479,-500.0,0.00019178,2]
[346255513,1734833446489,-500.0,0.00019178,2]
[346255514,1734833446498,-500.0,0.00019178,2]
[346255515,1734833446507,-1063.36,0.00019178,2]
[346255516,1734833446516,-500.0,0.00019178,2]
[346255517,1734833446526,-500.0,0.00019178,2]
[346255518,1734833446535,-5566.95,0.00019178,2]
[346255519,1734833446545,-999.87,0.00019178,2]
[346255520,1734833446554,-780.78,0.00019178,2]
[346255521,1734833446563,-1908.25,0.00019178,2]
[346255522,1734833446572,-503.95104876,0.00019178,2]
[346255523,1734833446581,-1952.11,0.00019178,2]
[346255524,1734833446590,-500.0,0.00019178,2]
[346255525,1734833446599,-505.4833946,0.00019178,2]
[346255526,1734833446612,-741.26,0.00019178,2]
[346255527,1734833446621,-505.79630187,0.00019178,2]
[346255528,1734833446630,-500.0,0.00019178,2]
[346255529,1734833446639,-507.21386267,0.00019178,2]
[346255530,1734833446649,-2731.29,0.00019178,2]
[346255531,1734833446658,-256.35276401,0.00019178,2]
[346255532,1734833446667,-504.61521733,0.00019178,2]
[346255533,1734833446676,-509.37516894,0.00019178,2]
[346255534,1734833446685,-3423.43,0.00019178,2]
[346255535,1734833446694,-501.10510196,0.00019178,2]
[346255536,1734833446703,-2080.8,0.00019178,2]
[346255537,1734833446712,-503.86174424,0.00019178,2]
[346255538,1734833446721,-2382.24,0.00019178,2]
[346255539,1734833446730,-500.0,0.00019178,2]
[346255540,1734833446739,-500.0,0.00019178,2]
[346255541,1734833446748,-689.13,0.00019178,2]
[346255542,1734833446757,-9392.91,0.00019178,2]
[346255543,1734833446766,-1540.95,0.00019178,2]
[346255544,1734833446775,-508.70113881,0.00019178,2]
[346255545,1734833446784,-1215.41,0.00019178,2]
[346255546,1734833446793,-502.49841224,0.00019178,2]
[346255547,1734833446802,-504.67263424,0.00019178,2]
[346255548,1734833446811,-1632.92,0.00019178,2]
[346255549,1734833446819,-502.8184082,0.00019178,2]
[346255550,1734833446828,-3817.73,0.00019178,2]
[346255551,1734833446838,-500.0,0.00019178,2]
[346255552,1734833446847,-991.14,0.00019178,2]
[346255553,1734833446856,-502.99601973,0.00019178,2]
[346255554,1734833446865,-522.83939804,0.00019178,2]
[346255555,1734833446874,-1193.18,0.00019178,2]
[346255556,1734833446882,-890.95,0.00019178,2]
[346255557,1734833446891,-504.04299441,0.00019178,2]
[346255558,1734833446901,-505.94873245,0.00019178,2]
[346255559,1734833446910,-500.0,0.00019178,2]
[346255560,1734833446920,-500.0,0.00019178,2]
[346255561,1734833446930,-1025.15,0.00019178,2]
[346255562,1734833446940,-500.0,0.00019178,2]
[346255563,1734833446949,-1279.61,0.00019178,2]
[346255564,1734833446958,-516.24883888,0.00019178,2]
[346255565,1734833446967,-3492.88,0.00019178,2]
[346255566,1734833446977,-518.36,0.00019178,2]
[346255567,1734833446986,-11333.34,0.00019178,2]
[346255568,1734833446995,-507.85359237,0.00019178,2]